[Event "Titled Tuesday Blitz August 02 Late 2022"]
[White "Kevlishvili, Robby"]
[Black "Koellner, Ruben Gideon"]
[WhiteFideId "1040634"]
[BlackFideId "12993093"]
[WhiteElo "2577"]
[BlackElo "2497"]
[Result "0-1"]
[Round "01"]
[TimeControl "180+1"]
[Date "2022.08.02"]
[WhiteClock "0:00:05"]
[BlackClock "0:00:08"]

1. e4 {[%clk 0:02:56]}  d6 {[%clk 0:03:00]} 2. d4 {[%clk 0:02:56]}  Nf6 {[%clk 0:03:01]} 3. Nc3 {[%clk 0:02:56]}  e5 {[%clk 0:02:53]} 4. Nf3 {[%clk 0:02:55]}  Nbd7 {[%clk 0:02:53]} 5. Bc4 {[%clk 0:02:55]}  Be7 {[%clk 0:02:53]} 6. a4 {[%clk 0:02:56]}  c6 {[%clk 0:02:53]} 7. O-O {[%clk 0:02:56]}  h6 {[%clk 0:02:54]} 8. Re1 {[%clk 0:02:55]}  Qc7 {[%clk 0:02:54]} 9. b3 {[%clk 0:02:54]}  Nf8 {[%clk 0:02:54]} 10. h3 {[%clk 0:02:47]}  Ng6 {[%clk 0:02:50]} 11. Bb2 {[%clk 0:02:44]}  O-O {[%clk 0:02:46]} 12. Qd2 {[%clk 0:02:43]}  b6 {[%clk 0:02:45]} 13. Rad1 {[%clk 0:02:41]}  a6 {[%clk 0:02:45]} 14. Bf1 {[%clk 0:02:40]}  b5 {[%clk 0:02:42]} 15. g3 {[%clk 0:02:34]}  Bd7 {[%clk 0:02:30]} 16. Bg2 {[%clk 0:02:32]}  Rfd8 {[%clk 0:02:26]} 17. Qd3 {[%clk 0:02:05]}  Be8 {[%clk 0:02:16]} 18. Nb1 {[%clk 0:02:02]}  Rac8 {[%clk 0:02:09]} 19. Nbd2 {[%clk 0:01:54]}  Bf8 {[%clk 0:02:07]} 20. c4 {[%clk 0:01:50]}  bxa4 {[%clk 0:02:06]} 21. bxa4 {[%clk 0:01:46]}  Rb8 {[%clk 0:02:06]} 22. Bc3 {[%clk 0:01:44]}  c5 {[%clk 0:02:03]} 23. d5 {[%clk 0:01:41]}  Bxa4 {[%clk 0:02:02]} 24. Ra1 {[%clk 0:01:41]}  Qd7 {[%clk 0:01:50]} 25. Nf1 {[%clk 0:01:41]}  Qe8 {[%clk 0:01:42]} 26. Ne3 {[%clk 0:01:39]}  Ra8 {[%clk 0:01:39]} 27. Reb1 {[%clk 0:01:30]}  Bd7 {[%clk 0:01:36]} 28. Rb6 {[%clk 0:01:30]}  Rdb8 {[%clk 0:01:32]} 29. Rbxa6 {[%clk 0:01:24]}  Rxa6 {[%clk 0:01:33]} 30. Rxa6 {[%clk 0:01:25]}  Qc8 {[%clk 0:01:33]} 31. Ra1 {[%clk 0:01:22]}  Bxh3 {[%clk 0:01:33]} 32. Bd2 {[%clk 0:01:07]}  Bxg2 {[%clk 0:01:30]} 33. Kxg2 {[%clk 0:01:08]}  Rb6 {[%clk 0:01:14]} 34. Nf5 {[%clk 0:01:04]}  Ne7 {[%clk 0:01:13]} 35. N3h4 {[%clk 0:01:04]}  Nxf5 {[%clk 0:01:10]} 36. Nxf5 {[%clk 0:01:04]}  g6 {[%clk 0:01:09]} 37. Nxh6+ {[%clk 0:00:55]}  Bxh6 {[%clk 0:01:09]} 38. Bxh6 {[%clk 0:00:55]}  Qg4 {[%clk 0:01:08]} 39. Re1 {[%clk 0:00:46]}  Rb2 {[%clk 0:00:58]} 40. Bc1 {[%clk 0:00:39]}  Ra2 {[%clk 0:00:47]} 41. Qb3 {[%clk 0:00:37]}  Re2 {[%clk 0:00:47]} 42. Qb8+ {[%clk 0:00:24]}  Kg7 {[%clk 0:00:45]} 43. Rxe2 {[%clk 0:00:17]}  Qxe2 {[%clk 0:00:46]} 44. Qxd6 {[%clk 0:00:14]}  Qxf2+ {[%clk 0:00:39]} 45. Kxf2 {[%clk 0:00:13]}  Nxe4+ {[%clk 0:00:40]} 46. Ke3 {[%clk 0:00:13]}  Nxd6 {[%clk 0:00:40]} 47. Kd3 {[%clk 0:00:14]}  e4+ {[%clk 0:00:38]} 48. Kc3 {[%clk 0:00:14]}  f5 {[%clk 0:00:38]} 49. Bf4 {[%clk 0:00:12]}  Nb7 {[%clk 0:00:37]} 50. Kb3 {[%clk 0:00:12]}  Kf6 {[%clk 0:00:37]} 51. Ka3 {[%clk 0:00:12]}  g5 {[%clk 0:00:37]} 52. Be3 {[%clk 0:00:12]}  Ke5 {[%clk 0:00:34]} 53. Bxg5 {[%clk 0:00:11]}  Kd4 {[%clk 0:00:34]} 54. Be7 {[%clk 0:00:08]}  Kxc4 {[%clk 0:00:33]} 55. d6 {[%clk 0:00:08]}  e3 {[%clk 0:00:32]} 56. g4 {[%clk 0:00:06]}  fxg4 {[%clk 0:00:27]} 57. d7 {[%clk 0:00:06]}  e2 {[%clk 0:00:27]} 58. Bh4 {[%clk 0:00:07]}  Kd3 {[%clk 0:00:23]} 59. Ka4 {[%clk 0:00:06]}  c4 {[%clk 0:00:20]} 60. Kb5 {[%clk 0:00:07]}  Nd6+ {[%clk 0:00:20]} 61. Kc5 {[%clk 0:00:05]}  Nf7 {[%clk 0:00:21]} 62. Kd5 {[%clk 0:00:06]}  c3 {[%clk 0:00:20]} 63. Ke6 {[%clk 0:00:06]}  Nd8+ {[%clk 0:00:20]} 64. Kd6 {[%clk 0:00:05]}  e1=Q {[%clk 0:00:17]} 65. Bxe1 {[%clk 0:00:04]}  c2 {[%clk 0:00:18]} 66. Bh4 {[%clk 0:00:04]}  Nb7+ {[%clk 0:00:16]} 67. Kc7 {[%clk 0:00:04]}  c1=Q+ {[%clk 0:00:16]} 68. Kxb7 {[%clk 0:00:04]}  Qb2+ {[%clk 0:00:17]} 69. Kc8 {[%clk 0:00:05]}  Qc3+ {[%clk 0:00:18]} 70. Kb7 {[%clk 0:00:05]}  Qb2+ {[%clk 0:00:17]} 71. Kc8 {[%clk 0:00:05]}  Qc3+ {[%clk 0:00:18]} 72. Kb7 {[%clk 0:00:05]}  Qb4+ {[%clk 0:00:19]} 73. Kc8 {[%clk 0:00:05]}  Qc5+ {[%clk 0:00:19]} 74. Kd8 {[%clk 0:00:05]}  Qf8+ {[%clk 0:00:18]} 75. Kc7 {[%clk 0:00:05]}  Qc5+ {[%clk 0:00:18]} 76. Kd8 {[%clk 0:00:05]}  Ke4 {[%clk 0:00:18]} 77. Ke8 {[%clk 0:00:04]}  Qe5+ {[%clk 0:00:18]} 78. Be7 {[%clk 0:00:05]}  Qh8+ {[%clk 0:00:18]} 79. Bf8 {[%clk 0:00:05]}  Qe5+ {[%clk 0:00:18]} 80. Be7 {[%clk 0:00:05]}  Qh5+ {[%clk 0:00:18]} 81. Kf8 {[%clk 0:00:05]}  Qh8+ {[%clk 0:00:18]} 82. Kf7 {[%clk 0:00:05]}  Qh7+ {[%clk 0:00:18]} 83. Ke8 {[%clk 0:00:05]}  Qg6+ {[%clk 0:00:17]} 84. Kf8 {[%clk 0:00:05]}  Qf5+ {[%clk 0:00:17]} 85. Ke8 {[%clk 0:00:05]}  Qb5 {[%clk 0:00:17]} 86. Bd6 {[%clk 0:00:05]}  Kf5 {[%clk 0:00:15]} 87. Ke7 {[%clk 0:00:05]}  Qe2+ {[%clk 0:00:14]} 88. Kf8 {[%clk 0:00:05]}  Kg6 {[%clk 0:00:08]} 0-1


[Site "https://www.chess.com"]

[Event "Titled Tuesday Blitz August 02 Late 2022"]
[White "Livaic, Leon"]
[Black "Huber, Benedikt"]
[WhiteFideId "14531534"]
[BlackFideId "12923583"]
[WhiteElo "2540"]
[BlackElo "1979"]
[Result "1-0"]
[Round "01"]
[TimeControl "180+1"]
[Date "2022.08.02"]
[WhiteClock "0:02:31"]
[BlackClock "0:02:28"]

1. e4 {[%clk 0:03:00]}  c5 {[%clk 0:02:44]} 2. Nf3 {[%clk 0:02:59]}  e6 {[%clk 0:02:38]} 3. g3 {[%clk 0:02:56]}  Nc6 {[%clk 0:02:35]} 4. Bg2 {[%clk 0:02:56]}  d5 {[%clk 0:02:36]} 5. exd5 {[%clk 0:02:56]}  exd5 {[%clk 0:02:37]} 6. O-O {[%clk 0:02:56]}  Nf6 {[%clk 0:02:36]} 7. d4 {[%clk 0:02:55]}  Bg4 {[%clk 0:02:37]} 8. Re1+ {[%clk 0:02:51]}  Be7 {[%clk 0:02:36]} 9. dxc5 {[%clk 0:02:50]}  O-O {[%clk 0:02:37]} 10. h3 {[%clk 0:02:43]}  Bh5 {[%clk 0:02:35]} 11. Nc3 {[%clk 0:02:35]}  Bxc5 {[%clk 0:02:34]} 12. Bg5 {[%clk 0:02:33]}  h6 {[%clk 0:02:27]} 13. Bxf6 {[%clk 0:02:33]}  Qxf6 {[%clk 0:02:28]} 14. Qxd5 {[%clk 0:02:32]}  Bb6 {[%clk 0:02:28]} 15. Qxh5 {[%clk 0:02:31]} 1-0


[Site "https://www.chess.com"]

[Event "Titled Tuesday Blitz August 02 Late 2022"]
[White "Luo, Terry"]
[Black "Andreikin, Dmitry"]
[WhiteFideId "30931045"]
[BlackFideId "4158814"]
[WhiteElo "2024"]
[BlackElo "2736"]
[Result "0-1"]
[Round "01"]
[TimeControl "180+1"]
[Date "2022.08.02"]
[WhiteClock "0:01:21"]
[BlackClock "0:01:52"]

1. d4 {[%clk 0:03:00]}  d5 {[%clk 0:02:58]} 2. Nc3 {[%clk 0:02:57]}  Bf5 {[%clk 0:02:57]} 3. Bf4 {[%clk 0:02:51]}  e6 {[%clk 0:02:57]} 4. e3 {[%clk 0:02:49]}  Bd6 {[%clk 0:02:57]} 5. Nf3 {[%clk 0:02:47]}  Bxf4 {[%clk 0:02:57]} 6. exf4 {[%clk 0:02:47]}  Bg4 {[%clk 0:02:56]} 7. Be2 {[%clk 0:02:46]}  Bxf3 {[%clk 0:02:54]} 8. Bxf3 {[%clk 0:02:46]}  Ne7 {[%clk 0:02:55]} 9. O-O {[%clk 0:02:47]}  O-O {[%clk 0:02:55]} 10. g3 {[%clk 0:02:47]}  Nd7 {[%clk 0:02:51]} 11. Ne2 {[%clk 0:02:45]}  c5 {[%clk 0:02:48]} 12. c3 {[%clk 0:02:45]}  Qb6 {[%clk 0:02:47]} 13. Qd2 {[%clk 0:02:45]}  g6 {[%clk 0:02:46]} 14. h4 {[%clk 0:02:45]}  Nf5 {[%clk 0:02:45]} 15. h5 {[%clk 0:02:44]}  cxd4 {[%clk 0:02:45]} 16. Nxd4 {[%clk 0:02:43]}  Nxd4 {[%clk 0:02:45]} 17. cxd4 {[%clk 0:02:44]}  Nf6 {[%clk 0:02:43]} 18. hxg6 {[%clk 0:02:41]}  hxg6 {[%clk 0:02:43]} 19. Kg2 {[%clk 0:02:42]}  Kg7 {[%clk 0:02:41]} 20. Rh1 {[%clk 0:02:42]}  Rh8 {[%clk 0:02:42]} 21. Rac1 {[%clk 0:02:42]}  Rxh1 {[%clk 0:02:41]} 22. Rxh1 {[%clk 0:02:42]}  Rh8 {[%clk 0:02:42]} 23. Rxh8 {[%clk 0:02:40]}  Kxh8 {[%clk 0:02:43]} 24. Qc3 {[%clk 0:02:38]}  Kg7 {[%clk 0:02:43]} 25. b4 {[%clk 0:02:33]}  Ne8 {[%clk 0:02:42]} 26. Qc5 {[%clk 0:02:33]}  Nd6 {[%clk 0:02:41]} 27. a4 {[%clk 0:02:14]}  Nf5 {[%clk 0:02:33]} 28. a5 {[%clk 0:02:14]}  Qxc5 {[%clk 0:02:31]} 29. dxc5 {[%clk 0:02:13]}  Nd4 {[%clk 0:02:31]} 30. Bd1 {[%clk 0:02:09]}  Kf6 {[%clk 0:02:28]} 31. Ba4 {[%clk 0:02:05]}  Ke7 {[%clk 0:02:26]} 32. b5 {[%clk 0:01:58]}  Kd8 {[%clk 0:02:07]} 33. b6 {[%clk 0:01:54]}  axb6 {[%clk 0:02:02]} 34. cxb6 {[%clk 0:01:54]}  Nf5 {[%clk 0:01:57]} 35. Kf3 {[%clk 0:01:41]}  Nd6 {[%clk 0:01:57]} 36. Ke2 {[%clk 0:01:21]}  Nc4 {[%clk 0:01:55]} 37. a6 {[%clk 0:01:22]}  bxa6 {[%clk 0:01:52]} 38. b7 {[%clk 0:01:21]}  Kc7 {[%clk 0:01:52]} 39. Be8 {[%clk 0:01:21]}  Nd6 {[%clk 0:01:52]} 0-1


[Site "https://www.chess.com"]

[Event "Titled Tuesday Blitz August 02 Late 2022"]
[White "Nakamura, Hikaru"]
[Black "Toncheva, Nadya"]
[WhiteFideId "2016192"]
[BlackFideId "2924056"]
[WhiteElo "2850"]
[BlackElo "1888"]
[Result "1-0"]
[Round "01"]
[TimeControl "180+1"]
[Date "2022.08.02"]
[WhiteClock "0:02:01"]
[BlackClock "0:00:05"]

1. Nf3 {[%clk 0:03:00]}  c5 {[%clk 0:03:00]} 2. e3 {[%clk 0:02:58]}  Nc6 {[%clk 0:03:00]} 3. d4 {[%clk 0:02:54]}  cxd4 {[%clk 0:03:00]} 4. exd4 {[%clk 0:02:54]}  d5 {[%clk 0:02:59]} 5. Bd3 {[%clk 0:02:54]}  Nf6 {[%clk 0:02:55]} 6. c3 {[%clk 0:02:54]}  Bg4 {[%clk 0:02:53]} 7. Bf4 {[%clk 0:02:51]}  e6 {[%clk 0:02:50]} 8. Qb3 {[%clk 0:02:51]}  Bxf3 {[%clk 0:02:27]} 9. Qxb7 {[%clk 0:02:48]}  Bxg2 {[%clk 0:02:15]} 10. Qxc6+ {[%clk 0:02:37]}  Nd7 {[%clk 0:02:14]} 11. Rg1 {[%clk 0:02:35]}  Rc8 {[%clk 0:02:05]} 12. Qb7 {[%clk 0:02:33]}  e5 {[%clk 0:01:05]} 13. Bxe5 {[%clk 0:02:21]}  Nxe5 {[%clk 0:00:49]} 14. dxe5 {[%clk 0:02:14]}  Bh3 {[%clk 0:00:48]} 15. Bb5+ {[%clk 0:02:13]}  Bd7 {[%clk 0:00:48]} 16. Nd2 {[%clk 0:02:13]}  Bxb5 {[%clk 0:00:39]} 17. Qxb5+ {[%clk 0:02:14]}  Qd7 {[%clk 0:00:39]} 18. Qxd7+ {[%clk 0:02:13]}  Kxd7 {[%clk 0:00:40]} 19. O-O-O {[%clk 0:02:13]}  Ke6 {[%clk 0:00:38]} 20. Nf3 {[%clk 0:02:13]}  h6 {[%clk 0:00:30]} 21. Rde1 {[%clk 0:02:12]}  g6 {[%clk 0:00:26]} 22. Nd4+ {[%clk 0:02:12]}  Kd7 {[%clk 0:00:24]} 23. e6+ {[%clk 0:02:13]}  fxe6 {[%clk 0:00:24]} 24. Rxg6 {[%clk 0:02:13]}  Bc5 {[%clk 0:00:21]} 25. Rg7+ {[%clk 0:02:07]}  Ke8 {[%clk 0:00:08]} 26. Rxe6+ {[%clk 0:02:05]}  Kf8 {[%clk 0:00:08]} 27. Rg4 {[%clk 0:02:05]}  Bxd4 {[%clk 0:00:07]} 28. Rxd4 {[%clk 0:02:04]}  Kf7 {[%clk 0:00:07]} 29. Re5 {[%clk 0:02:04]}  Kf6 {[%clk 0:00:06]} 30. Rexd5 {[%clk 0:02:04]}  Rhe8 {[%clk 0:00:06]} 31. Rd6+ {[%clk 0:02:04]}  Kg7 {[%clk 0:00:07]} 32. Rd7+ {[%clk 0:02:03]}  Kg6 {[%clk 0:00:06]} 33. Rxa7 {[%clk 0:02:03]}  Re2 {[%clk 0:00:06]} 34. Rd2 {[%clk 0:02:03]}  Re1+ {[%clk 0:00:05]} 35. Kc2 {[%clk 0:02:04]}  Rh1 {[%clk 0:00:06]} 36. Rd6+ {[%clk 0:02:02]}  Kg5 {[%clk 0:00:05]} 37. Ra5+ {[%clk 0:02:02]}  Kf4 {[%clk 0:00:06]} 38. Rxh6 {[%clk 0:02:02]}  Rf1 {[%clk 0:00:05]} 39. Rh4+ {[%clk 0:02:01]}  Kf3 {[%clk 0:00:05]} 40. Rf5+ {[%clk 0:02:01]}  Ke2 {[%clk 0:00:05]} 41. Re4# {[%clk 0:02:01]} 1-0


[Site "https://www.chess.com"]

[Event "Titled Tuesday Blitz August 02 Late 2022"]
[White "Paravyan, David"]
[Black "Jeet, Jain"]
[WhiteFideId "4194985"]
[BlackFideId "5073022"]
[WhiteElo "2569"]
[BlackElo "2055"]
[Result "1-0"]
[Round "01"]
[TimeControl "180+1"]
[Date "2022.08.02"]
[WhiteClock "0:00:32"]
[BlackClock "0:00:14"]

1. e4 {[%clk 0:01:36]}  d5 {[%clk 0:03:00]} 2. exd5 {[%clk 0:01:32]}  Qxd5 {[%clk 0:03:01]} 3. Nc3 {[%clk 0:01:33]}  Qd6 {[%clk 0:03:01]} 4. d4 {[%clk 0:01:33]}  g6 {[%clk 0:03:01]} 5. Nb5 {[%clk 0:01:31]}  Qb6 {[%clk 0:02:55]} 6. a4 {[%clk 0:01:32]}  c6 {[%clk 0:02:54]} 7. a5 {[%clk 0:01:32]}  Qd8 {[%clk 0:02:54]} 8. Nc3 {[%clk 0:01:31]}  Bg7 {[%clk 0:02:54]} 9. Nf3 {[%clk 0:01:28]}  Nf6 {[%clk 0:02:54]} 10. h3 {[%clk 0:01:27]}  O-O {[%clk 0:02:54]} 11. Bc4 {[%clk 0:01:28]}  Nd5 {[%clk 0:02:44]} 12. O-O {[%clk 0:01:28]}  Bf5 {[%clk 0:02:37]} 13. Re1 {[%clk 0:01:26]}  Nb4 {[%clk 0:02:32]} 14. Bb3 {[%clk 0:01:26]}  N8a6 {[%clk 0:02:27]} 15. Bg5 {[%clk 0:01:24]}  Re8 {[%clk 0:02:21]} 16. Qd2 {[%clk 0:01:24]}  Nc7 {[%clk 0:02:04]} 17. Ne4 {[%clk 0:01:22]}  Nbd5 {[%clk 0:01:54]} 18. Ng3 {[%clk 0:01:22]}  Be6 {[%clk 0:01:48]} 19. Bh6 {[%clk 0:01:22]}  Nf6 {[%clk 0:01:46]} 20. Bxg7 {[%clk 0:01:19]}  Kxg7 {[%clk 0:01:45]} 21. Bxe6 {[%clk 0:01:19]}  Nxe6 {[%clk 0:01:44]} 22. Qb4 {[%clk 0:01:13]}  Rb8 {[%clk 0:01:29]} 23. Rxe6 {[%clk 0:01:05]}  fxe6 {[%clk 0:01:30]} 24. Re1 {[%clk 0:01:05]}  Qd6 {[%clk 0:01:23]} 25. Qb3 {[%clk 0:01:05]}  Nd5 {[%clk 0:01:22]} 26. c4 {[%clk 0:01:04]}  Nf4 {[%clk 0:01:21]} 27. Ne4 {[%clk 0:00:58]}  Qc7 {[%clk 0:01:16]} 28. Qc3 {[%clk 0:00:55]}  Kg8 {[%clk 0:01:12]} 29. g3 {[%clk 0:00:54]}  Nh5 {[%clk 0:01:07]} 30. Nc5 {[%clk 0:00:50]}  Ng7 {[%clk 0:01:02]} 31. Kg2 {[%clk 0:00:44]}  b6 {[%clk 0:01:00]} 32. Na6 {[%clk 0:00:44]}  Qd6 {[%clk 0:00:58]} 33. Nxb8 {[%clk 0:00:45]}  Rxb8 {[%clk 0:00:59]} 34. a6 {[%clk 0:00:45]}  Rd8 {[%clk 0:00:54]} 35. b4 {[%clk 0:00:44]}  Nf5 {[%clk 0:00:54]} 36. Re4 {[%clk 0:00:42]}  b5 {[%clk 0:00:47]} 37. g4 {[%clk 0:00:33]}  Ng7 {[%clk 0:00:44]} 38. Ne5 {[%clk 0:00:27]}  bxc4 {[%clk 0:00:34]} 39. Qxc4 {[%clk 0:00:28]}  Qd5 {[%clk 0:00:33]} 40. Qxd5 {[%clk 0:00:27]}  cxd5 {[%clk 0:00:32]} 41. Re3 {[%clk 0:00:27]}  Rd6 {[%clk 0:00:21]} 42. b5 {[%clk 0:00:27]}  Ne8 {[%clk 0:00:20]} 43. Rc3 {[%clk 0:00:26]}  Nf6 {[%clk 0:00:18]} 44. Rc8+ {[%clk 0:00:26]}  Kg7 {[%clk 0:00:18]} 45. Ra8 {[%clk 0:00:26]}  Rb6 {[%clk 0:00:14]} 46. Rxa7 {[%clk 0:00:27]}  Rxb5 {[%clk 0:00:15]} 47. Rxe7+ {[%clk 0:00:26]}  Kg8 {[%clk 0:00:15]} 48. Rb7 {[%clk 0:00:26]}  Ra5 {[%clk 0:00:16]} 49. a7 {[%clk 0:00:27]}  Ne8 {[%clk 0:00:14]} 50. Rb8 {[%clk 0:00:27]}  Rxa7 {[%clk 0:00:13]} 51. Rxe8+ {[%clk 0:00:28]}  Kg7 {[%clk 0:00:14]} 52. Rxe6 {[%clk 0:00:28]}  Ra4 {[%clk 0:00:15]} 53. Nf3 {[%clk 0:00:28]}  Kf7 {[%clk 0:00:15]} 54. Re3 {[%clk 0:00:29]}  Ra5 {[%clk 0:00:15]} 55. Kg3 {[%clk 0:00:30]}  Kf6 {[%clk 0:00:16]} 56. h4 {[%clk 0:00:31]}  h6 {[%clk 0:00:17]} 57. Rb3 {[%clk 0:00:31]}  Ra4 {[%clk 0:00:15]} 58. Rd3 {[%clk 0:00:31]}  Ra2 {[%clk 0:00:15]} 59. Ne1 {[%clk 0:00:31]}  Ra1 {[%clk 0:00:15]} 60. Ng2 {[%clk 0:00:32]}  g5 {[%clk 0:00:14]} 61. h5 {[%clk 0:00:31]}  Ra4 {[%clk 0:00:13]} 62. Ne3 {[%clk 0:00:32]}  Ra5 {[%clk 0:00:13]} 63. Kf3 {[%clk 0:00:31]}  Ke6 {[%clk 0:00:10]} 64. Ke2 {[%clk 0:00:32]}  Kf6 {[%clk 0:00:11]} 65. Rd2 {[%clk 0:00:32]}  Ra4 {[%clk 0:00:11]} 66. Nxd5+ {[%clk 0:00:31]}  Ke6 {[%clk 0:00:11]} 67. Ne3 {[%clk 0:00:32]}  Ra5 {[%clk 0:00:12]} 68. Rc2 {[%clk 0:00:31]}  Ra4 {[%clk 0:00:12]} 69. Kd3 {[%clk 0:00:32]}  Ra3+ {[%clk 0:00:12]} 70. Rc3 {[%clk 0:00:32]}  Ra4 {[%clk 0:00:13]} 71. Ke4 {[%clk 0:00:32]}  Ra1 {[%clk 0:00:13]} 72. Rc6+ {[%clk 0:00:32]}  Kd7 {[%clk 0:00:14]} 73. Rxh6 {[%clk 0:00:32]} 1-0


[Site "https://www.chess.com"]

[Event "Titled Tuesday Blitz August 02 Late 2022"]
[White "Rasulov, Vugar"]
[Black "Viana Da Costa, Fernando"]
[WhiteFideId "13402390"]
[BlackFideId "2111900"]
[WhiteElo "2523"]
[BlackElo "2277"]
[Result "1-0"]
[Round "01"]
[TimeControl "180+1"]
[Date "2022.08.02"]
[WhiteClock "0:00:47"]
[BlackClock "0:00:35"]

1. e4 {[%clk 0:03:00]}  c5 {[%clk 0:03:00]} 2. Nf3 {[%clk 0:03:00]}  Nc6 {[%clk 0:03:00]} 3. Bb5 {[%clk 0:02:59]}  e6 {[%clk 0:03:00]} 4. O-O {[%clk 0:02:58]}  Nge7 {[%clk 0:03:00]} 5. b3 {[%clk 0:02:56]}  a6 {[%clk 0:02:56]} 6. Bxc6 {[%clk 0:02:56]}  Nxc6 {[%clk 0:02:56]} 7. Bb2 {[%clk 0:02:57]}  d6 {[%clk 0:02:51]} 8. d4 {[%clk 0:02:51]}  cxd4 {[%clk 0:02:52]} 9. Nxd4 {[%clk 0:02:51]}  Bd7 {[%clk 0:02:49]} 10. c4 {[%clk 0:02:48]}  Be7 {[%clk 0:02:43]} 11. Ne2 {[%clk 0:02:35]}  O-O {[%clk 0:02:42]} 12. Ng3 {[%clk 0:02:36]}  b5 {[%clk 0:02:41]} 13. Nd2 {[%clk 0:02:26]}  Ne5 {[%clk 0:02:21]} 14. c5 {[%clk 0:02:20]}  Nd3 {[%clk 0:02:14]} 15. cxd6 {[%clk 0:02:06]}  Bxd6 {[%clk 0:02:01]} 16. Bd4 {[%clk 0:01:55]}  e5 {[%clk 0:01:57]} 17. Nf3 {[%clk 0:01:48]}  b4 {[%clk 0:01:29]} 18. Be3 {[%clk 0:01:37]}  Bb5 {[%clk 0:01:28]} 19. Nf5 {[%clk 0:01:34]}  Bc7 {[%clk 0:01:23]} 20. Qd2 {[%clk 0:01:33]}  g6 {[%clk 0:01:13]} 21. Nh6+ {[%clk 0:01:32]}  Kg7 {[%clk 0:01:13]} 22. Rfd1 {[%clk 0:01:28]}  Bb6 {[%clk 0:01:10]} 23. Ng4 {[%clk 0:01:26]}  Bxe3 {[%clk 0:01:08]} 24. Qxe3 {[%clk 0:01:26]}  f6 {[%clk 0:01:03]} 25. Ne1 {[%clk 0:01:18]}  Qc8 {[%clk 0:00:58]} 26. Nxd3 {[%clk 0:01:17]}  Qxg4 {[%clk 0:00:58]} 27. Nxb4 {[%clk 0:01:17]}  Rad8 {[%clk 0:00:54]} 28. Nd5 {[%clk 0:01:17]}  Bc6 {[%clk 0:00:51]} 29. h3 {[%clk 0:01:17]}  Qe6 {[%clk 0:00:51]} 30. Nb4 {[%clk 0:01:03]}  Bb7 {[%clk 0:00:47]} 31. Nd3 {[%clk 0:01:03]}  Rd4 {[%clk 0:00:42]} 32. Nc5 {[%clk 0:01:01]}  Qb6 {[%clk 0:00:42]} 33. Rxd4 {[%clk 0:00:53]}  exd4 {[%clk 0:00:41]} 34. Qxd4 {[%clk 0:00:54]}  Bxe4 {[%clk 0:00:39]} 35. Re1 {[%clk 0:00:51]}  Bf5 {[%clk 0:00:37]} 36. Ne6+ {[%clk 0:00:46]}  Qxe6 {[%clk 0:00:34]} 37. Rxe6 {[%clk 0:00:46]}  Bxe6 {[%clk 0:00:35]} 38. Qa7+ {[%clk 0:00:47]} 1-0


[Site "https://www.chess.com"]

[Event "Titled Tuesday Blitz August 02 Late 2022"]
[White "Sjugirov, Sanan"]
[Black "Culum, Sanjin"]
[WhiteFideId "4189302"]
[BlackFideId "14420937"]
[WhiteElo "2609"]
[BlackElo "2013"]
[Result "1-0"]
[Round "01"]
[TimeControl "180+1"]
[Date "2022.08.02"]
[WhiteClock "0:01:49"]
[BlackClock "0:00:17"]

1. e4 {[%clk 0:03:00]}  c5 {[%clk 0:02:59]} 2. Nf3 {[%clk 0:03:00]}  Nc6 {[%clk 0:02:59]} 3. Bb5 {[%clk 0:03:00]}  g6 {[%clk 0:02:59]} 4. Bxc6 {[%clk 0:03:00]}  bxc6 {[%clk 0:03:00]} 5. O-O {[%clk 0:02:59]}  Bg7 {[%clk 0:03:00]} 6. Re1 {[%clk 0:02:56]}  Qc7 {[%clk 0:02:59]} 7. c3 {[%clk 0:02:53]}  Nf6 {[%clk 0:02:53]} 8. d3 {[%clk 0:02:46]}  O-O {[%clk 0:02:52]} 9. e5 {[%clk 0:02:38]}  Nd5 {[%clk 0:02:52]} 10. h3 {[%clk 0:02:33]}  d6 {[%clk 0:02:26]} 11. exd6 {[%clk 0:02:14]}  exd6 {[%clk 0:02:24]} 12. Nbd2 {[%clk 0:02:12]}  Ba6 {[%clk 0:01:50]} 13. Ne4 {[%clk 0:02:11]}  h6 {[%clk 0:01:43]} 14. c4 {[%clk 0:02:07]}  Ne7 {[%clk 0:01:35]} 15. Bf4 {[%clk 0:02:06]}  Rad8 {[%clk 0:01:02]} 16. Nxc5 {[%clk 0:02:00]}  Bc8 {[%clk 0:00:58]} 17. Ne4 {[%clk 0:01:57]}  Nf5 {[%clk 0:00:56]} 18. Qd2 {[%clk 0:01:53]}  Kh7 {[%clk 0:00:50]} 19. c5 {[%clk 0:01:51]}  Be5 {[%clk 0:00:39]} 20. Nxe5 {[%clk 0:01:49]}  dxe5 {[%clk 0:00:39]} 21. Nf6+ {[%clk 0:01:50]}  Kg7 {[%clk 0:00:17]} 22. Bxe5 {[%clk 0:01:51]}  Qxe5 {[%clk 0:00:18]} 23. Rxe5 {[%clk 0:01:49]}  Kxf6 {[%clk 0:00:18]} 24. Qc3 {[%clk 0:01:49]}  Nd4 {[%clk 0:00:17]} 25. Re4 {[%clk 0:01:49]} 1-0


[Site "https://www.chess.com"]